[Event "Titled Tuesday Blitz April 12 Late 2022"]
[White "Batsiashvili, Nino"]
[Black "Ashiev, Eduard"]
[WhiteFideId "13602993"]
[BlackFideId "4130090"]
[WhiteElo "2192"]
[BlackElo "2004"]
[Result "1/2-1/2"]
[Round "02"]
[TimeControl "180+1"]
[Date "2022.04.13"]
[WhiteClock "0:01:14"]
[BlackClock "0:00:11"]

1. d4 {[%clk 0:02:59]}  d5 {[%clk 0:02:59]} 2. c4 {[%clk 0:02:59]}  c6 {[%clk 0:02:59]} 3. Nf3 {[%clk 0:03:00]}  Nf6 {[%clk 0:02:59]} 4. e3 {[%clk 0:03:00]}  e6 {[%clk 0:02:59]} 5. Be2 {[%clk 0:03:00]}  Nbd7 {[%clk 0:02:58]} 6. O-O {[%clk 0:03:01]}  Bd6 {[%clk 0:02:58]} 7. Nbd2 {[%clk 0:03:01]}  c5 {[%clk 0:02:55]} 8. cxd5 {[%clk 0:03:00]}  exd5 {[%clk 0:02:54]} 9. dxc5 {[%clk 0:02:59]}  Nxc5 {[%clk 0:02:55]} 10. Nb3 {[%clk 0:02:58]}  Nce4 {[%clk 0:02:55]} 11. Nbd4 {[%clk 0:02:57]}  O-O {[%clk 0:02:55]} 12. b3 {[%clk 0:02:56]}  Qe7 {[%clk 0:02:50]} 13. Bb2 {[%clk 0:02:56]}  Bd7 {[%clk 0:02:49]} 14. Rc1 {[%clk 0:02:52]}  Rac8 {[%clk 0:02:47]} 15. Rxc8 {[%clk 0:02:50]}  Rxc8 {[%clk 0:02:46]} 16. Qd3 {[%clk 0:02:45]}  a6 {[%clk 0:02:40]} 17. Qd1 {[%clk 0:02:33]}  h6 {[%clk 0:02:12]} 18. Nd2 {[%clk 0:02:32]}  Qe5 {[%clk 0:01:34]} 19. f4 {[%clk 0:02:32]}  Qe7 {[%clk 0:01:28]} 20. Nxe4 {[%clk 0:02:30]}  Nxe4 {[%clk 0:01:09]} 21. Bd3 {[%clk 0:02:18]}  Bb4 {[%clk 0:00:42]} 22. Qe2 {[%clk 0:02:05]}  Re8 {[%clk 0:00:39]} 23. Nf3 {[%clk 0:02:00]}  Bc3 {[%clk 0:00:33]} 24. Bxe4 {[%clk 0:01:55]}  Bxb2 {[%clk 0:00:34]} 25. Bxd5 {[%clk 0:01:42]}  Qxe3+ {[%clk 0:00:29]} 26. Qxe3 {[%clk 0:01:43]}  Rxe3 {[%clk 0:00:29]} 27. Bxb7 {[%clk 0:01:43]}  a5 {[%clk 0:00:22]} 28. Re1 {[%clk 0:01:42]}  Rxe1+ {[%clk 0:00:19]} 29. Nxe1 {[%clk 0:01:43]}  a4 {[%clk 0:00:19]} 30. bxa4 {[%clk 0:01:41]}  Bxa4 {[%clk 0:00:19]} 31. Bd5 {[%clk 0:01:42]}  Kf8 {[%clk 0:00:18]} 32. Kf2 {[%clk 0:01:41]}  Bd4+ {[%clk 0:00:18]} 33. Kf3 {[%clk 0:01:41]}  Ke7 {[%clk 0:00:17]} 34. Ke4 {[%clk 0:01:38]}  Bb6 {[%clk 0:00:15]} 35. g4 {[%clk 0:01:37]}  f6 {[%clk 0:00:15]} 36. h4 {[%clk 0:01:36]}  Kd6 {[%clk 0:00:15]} 37. Bb7 {[%clk 0:01:33]}  Bd7 {[%clk 0:00:15]} 38. f5 {[%clk 0:01:26]}  Bf2 {[%clk 0:00:14]} 39. Nf3 {[%clk 0:01:25]}  Ba4 {[%clk 0:00:14]} 40. g5 {[%clk 0:01:15]}  Bc2+ {[%clk 0:00:13]} 41. Kf4 {[%clk 0:01:15]}  hxg5+ {[%clk 0:00:13]} 42. hxg5 {[%clk 0:01:16]}  fxg5+ {[%clk 0:00:13]} 43. Nxg5 {[%clk 0:01:17]}  Be1 {[%clk 0:00:10]} 44. Be4 {[%clk 0:01:14]}  Bd2+ {[%clk 0:00:10]} 45. Kg4 {[%clk 0:01:12]}  Bxg5 {[%clk 0:00:08]} 46. Bxc2 {[%clk 0:01:12]}  Bf6 {[%clk 0:00:09]} 47. a4 {[%clk 0:01:11]}  Kc5 {[%clk 0:00:09]} 48. Kh5 {[%clk 0:01:11]}  Kb4 {[%clk 0:00:10]} 49. Kg6 {[%clk 0:01:11]}  Ka5 {[%clk 0:00:10]} 50. Bd1 {[%clk 0:01:12]}  Kb4 {[%clk 0:00:10]} 51. Bc2 {[%clk 0:01:13]}  Ka5 {[%clk 0:00:11]} 52. Bd1 {[%clk 0:01:13]}  Kb4 {[%clk 0:00:11]} 53. Bc2 {[%clk 0:01:14]} 1/2-1/2


[Site "https://www.chess.com"]

[Event "Titled Tuesday Blitz April 12 Late 2022"]
[White "Bilan, Danila"]
[Black "Korchmar, Vasiliy"]
[WhiteFideId "24161918"]
[BlackFideId "24131750"]
[WhiteElo "2164"]
[BlackElo "2370"]
[Result "1-0"]
[Round "02"]
[TimeControl "180+1"]
[Date "2022.04.12"]
[WhiteClock "0:00:11"]
[BlackClock "0:00:03"]

1. d4 {[%clk 0:03:00]}  d5 {[%clk 0:02:58]} 2. Nf3 {[%clk 0:03:01]}  Nf6 {[%clk 0:02:59]} 3. c4 {[%clk 0:03:01]}  c6 {[%clk 0:02:59]} 4. Nc3 {[%clk 0:03:01]}  e6 {[%clk 0:02:59]} 5. Bg5 {[%clk 0:02:59]}  Be7 {[%clk 0:02:54]} 6. e3 {[%clk 0:02:56]}  Nbd7 {[%clk 0:02:54]} 7. cxd5 {[%clk 0:02:56]}  exd5 {[%clk 0:02:53]} 8. Bd3 {[%clk 0:02:56]}  h6 {[%clk 0:02:53]} 9. Bh4 {[%clk 0:02:55]}  O-O {[%clk 0:02:52]} 10. Qc2 {[%clk 0:02:55]}  Re8 {[%clk 0:02:52]} 11. O-O {[%clk 0:02:54]}  Ne4 {[%clk 0:02:51]} 12. Bxe7 {[%clk 0:02:49]}  Qxe7 {[%clk 0:02:52]} 13. Bxe4 {[%clk 0:02:46]}  dxe4 {[%clk 0:02:53]} 14. Nd2 {[%clk 0:02:46]}  Nf6 {[%clk 0:02:50]} 15. Nc4 {[%clk 0:02:43]}  Bf5 {[%clk 0:02:35]} 16. Ne5 {[%clk 0:02:30]}  Rad8 {[%clk 0:02:30]} 17. Na4 {[%clk 0:02:08]}  Nd5 {[%clk 0:02:25]} 18. Nc3 {[%clk 0:01:37]}  Nb4 {[%clk 0:02:10]} 19. Qb3 {[%clk 0:01:31]}  Be6 {[%clk 0:02:06]} 20. Qa4 {[%clk 0:01:19]}  Bf5 {[%clk 0:01:33]} 21. a3 {[%clk 0:01:14]}  Nd5 {[%clk 0:01:04]} 22. Qc2 {[%clk 0:00:56]}  Rd6 {[%clk 0:00:45]} 23. Ne2 {[%clk 0:00:37]}  Bh7 {[%clk 0:00:35]} 24. Ng3 {[%clk 0:00:28]}  Qh4 {[%clk 0:00:32]} 25. b4 {[%clk 0:00:21]}  f5 {[%clk 0:00:28]} 26. Ne2 {[%clk 0:00:07]}  f4 {[%clk 0:00:23]} 27. g3 {[%clk 0:00:05]}  fxg3 {[%clk 0:00:20]} 28. hxg3 {[%clk 0:00:04]}  Qh3 {[%clk 0:00:21]} 29. Nf4 {[%clk 0:00:03]}  Nxf4 {[%clk 0:00:21]} 30. exf4 {[%clk 0:00:04]}  e3 {[%clk 0:00:18]} 31. Qb3+ {[%clk 0:00:04]}  Rd5 {[%clk 0:00:15]} 32. Qxe3 {[%clk 0:00:05]}  Bf5 {[%clk 0:00:10]} 33. Rae1 {[%clk 0:00:05]}  Bg4 {[%clk 0:00:06]} 34. Qe4 {[%clk 0:00:05]}  Bc8 {[%clk 0:00:04]} 35. Qg2 {[%clk 0:00:05]}  Qh5 {[%clk 0:00:04]} 36. Rd1 {[%clk 0:00:05]}  Bh3 {[%clk 0:00:04]} 37. Qh2 {[%clk 0:00:04]}  Qf5 {[%clk 0:00:04]} 38. Rfe1 {[%clk 0:00:05]}  Qc8 {[%clk 0:00:02]} 39. Qh1 {[%clk 0:00:05]}  Bf5 {[%clk 0:00:02]} 40. Qf3 {[%clk 0:00:06]}  Rdd8 {[%clk 0:00:02]} 41. Qe3 {[%clk 0:00:06]}  Be6 {[%clk 0:00:03]} 42. Qd2 {[%clk 0:00:05]}  Bd5 {[%clk 0:00:03]} 43. Qe3 {[%clk 0:00:05]}  Re6 {[%clk 0:00:04]} 44. f3 {[%clk 0:00:03]}  Rde8 {[%clk 0:00:04]} 45. Kf2 {[%clk 0:00:04]}  Rf6 {[%clk 0:00:05]} 46. Rh1 {[%clk 0:00:04]}  Ref8 {[%clk 0:00:05]} 47. Qd3 {[%clk 0:00:05]}  Re8 {[%clk 0:00:04]} 48. Rde1 {[%clk 0:00:05]}  Ref8 {[%clk 0:00:04]} 49. Ng4 {[%clk 0:00:06]}  Re6 {[%clk 0:00:03]} 50. Ne5 {[%clk 0:00:06]}  Ref6 {[%clk 0:00:02]} 51. Ng4 {[%clk 0:00:07]}  Re6 {[%clk 0:00:03]} 52. Rxe6 {[%clk 0:00:07]}  Qxe6 {[%clk 0:00:03]} 53. Ne5 {[%clk 0:00:08]}  Qf6 {[%clk 0:00:02]} 54. Qg6 {[%clk 0:00:08]}  Qxg6 {[%clk 0:00:03]} 55. Nxg6 {[%clk 0:00:09]}  Re8 {[%clk 0:00:03]} 56. Ne5 {[%clk 0:00:10]}  Ra8 {[%clk 0:00:03]} 57. Rc1 {[%clk 0:00:10]}  a5 {[%clk 0:00:04]} 58. b5 {[%clk 0:00:10]}  cxb5 {[%clk 0:00:04]} 59. Rc5 {[%clk 0:00:11]}  b4 {[%clk 0:00:02]} 60. axb4 {[%clk 0:00:10]}  axb4 {[%clk 0:00:01]} 61. Rxd5 {[%clk 0:00:10]}  b3 {[%clk 0:00:01]} 62. Rb5 {[%clk 0:00:10]}  Ra2+ {[%clk 0:00:02]} 63. Ke3 {[%clk 0:00:11]}  b2 {[%clk 0:00:03]} 64. Nd3 {[%clk 0:00:11]} 1-0


[Site "https://www.chess.com"]

[Event "Titled Tuesday Blitz April 12 Late 2022"]
[White "Bortnyk, Olexandr"]
[Black "Cabarkapa, Novak"]
[WhiteFideId "14120828"]
[BlackFideId "943746"]
[WhiteElo "2723"]
[BlackElo "2443"]
[Result "1-0"]
[Round "02"]
[TimeControl "180+1"]
[Date "2022.04.12"]
[WhiteClock "0:00:58"]
[BlackClock "0:01:02"]

1. d4 {[%clk 0:03:00]}  Nf6 {[%clk 0:02:59]} 2. Nc3 {[%clk 0:02:58]}  d5 {[%clk 0:02:58]} 3. Bf4 {[%clk 0:02:57]}  e6 {[%clk 0:02:57]} 4. Nb5 {[%clk 0:02:57]}  Na6 {[%clk 0:02:57]} 5. e3 {[%clk 0:02:58]}  Be7 {[%clk 0:02:57]} 6. Nf3 {[%clk 0:02:57]}  O-O {[%clk 0:02:56]} 7. Ne5 {[%clk 0:02:58]}  c6 {[%clk 0:02:54]} 8. Nc3 {[%clk 0:02:58]}  c5 {[%clk 0:02:55]} 9. Bxa6 {[%clk 0:02:58]}  bxa6 {[%clk 0:02:54]} 10. Nc6 {[%clk 0:02:58]}  Qd7 {[%clk 0:02:52]} 11. Nxe7+ {[%clk 0:02:58]}  Qxe7 {[%clk 0:02:53]} 12. O-O {[%clk 0:02:58]}  a5 {[%clk 0:02:51]} 13. Qf3 {[%clk 0:02:58]}  cxd4 {[%clk 0:02:46]} 14. exd4 {[%clk 0:02:59]}  Qb4 {[%clk 0:02:46]} 15. Qd3 {[%clk 0:02:28]}  Bb7 {[%clk 0:02:31]} 16. a3 {[%clk 0:02:21]}  Qb6 {[%clk 0:02:30]} 17. Rfe1 {[%clk 0:02:16]}  Ne4 {[%clk 0:02:28]} 18. Nxe4 {[%clk 0:02:10]}  dxe4 {[%clk 0:02:29]} 19. Qg3 {[%clk 0:02:10]}  f6 {[%clk 0:02:20]} 20. c3 {[%clk 0:02:02]}  Bd5 {[%clk 0:02:14]} 21. b4 {[%clk 0:02:01]}  Rfc8 {[%clk 0:02:01]} 22. h4 {[%clk 0:01:54]}  axb4 {[%clk 0:02:00]} 23. axb4 {[%clk 0:01:55]}  a5 {[%clk 0:01:59]} 24. bxa5 {[%clk 0:01:36]}  Rxa5 {[%clk 0:01:58]} 25. Rab1 {[%clk 0:01:36]}  Rb5 {[%clk 0:01:58]} 26. Bh6 {[%clk 0:01:36]}  g6 {[%clk 0:01:42]} 27. Rxb5 {[%clk 0:01:36]}  Qxb5 {[%clk 0:01:43]} 28. Qf4 {[%clk 0:01:18]}  Qb7 {[%clk 0:01:09]} 29. Qxf6 {[%clk 0:01:15]}  Qf7 {[%clk 0:01:09]} 30. Qe5 {[%clk 0:01:13]}  Qc7 {[%clk 0:01:10]} 31. Qf6 {[%clk 0:00:59]}  Qf7 {[%clk 0:01:08]} 32. Qg5 {[%clk 0:00:58]}  Rxc3 {[%clk 0:01:02]} 33. Qd8+ {[%clk 0:00:58]} 1-0


[Site "https://www.chess.com"]

[Event "Titled Tuesday Blitz April 12 Late 2022"]
[White "Bryakin, Mikhail"]
[Black "Sokolovsky, Yahli"]
[WhiteFideId "4165314"]
[BlackFideId "2820242"]
[WhiteElo "2417"]
[BlackElo "1770"]
[Result "0-1"]
[Round "02"]
[TimeControl "180+1"]
[Date "2022.04.12"]
[WhiteClock "0:00:21"]
[BlackClock "0:00:07"]

1. e4 {[%clk 0:03:00]}  g6 {[%clk 0:02:59]} 2. d4 {[%clk 0:03:00]}  Bg7 {[%clk 0:02:59]} 3. Nc3 {[%clk 0:03:00]}  d6 {[%clk 0:02:59]} 4. Nf3 {[%clk 0:03:00]}  a6 {[%clk 0:02:58]} 5. a4 {[%clk 0:02:59]}  b6 {[%clk 0:02:58]} 6. Be2 {[%clk 0:02:56]}  Bb7 {[%clk 0:02:58]} 7. O-O {[%clk 0:02:57]}  Nf6 {[%clk 0:02:58]} 8. d5 {[%clk 0:02:54]}  O-O {[%clk 0:02:57]} 9. Bg5 {[%clk 0:02:51]}  h6 {[%clk 0:02:56]} 10. Bh4 {[%clk 0:02:50]}  c5 {[%clk 0:02:39]} 11. Re1 {[%clk 0:02:41]}  Nbd7 {[%clk 0:02:29]} 12. Bf1 {[%clk 0:02:41]}  Ne5 {[%clk 0:02:26]} 13. Nxe5 {[%clk 0:02:40]}  dxe5 {[%clk 0:02:27]} 14. f3 {[%clk 0:02:30]}  Ne8 {[%clk 0:02:21]} 15. Bf2 {[%clk 0:02:29]}  Rc8 {[%clk 0:02:14]} 16. b3 {[%clk 0:02:15]}  Nd6 {[%clk 0:02:03]} 17. Nb1 {[%clk 0:02:02]}  f5 {[%clk 0:01:55]} 18. Nd2 {[%clk 0:02:02]}  f4 {[%clk 0:01:51]} 19. Nc4 {[%clk 0:02:02]}  g5 {[%clk 0:01:35]} 20. a5 {[%clk 0:02:02]}  b5 {[%clk 0:01:35]} 21. Nb6 {[%clk 0:01:59]}  Rc7 {[%clk 0:01:35]} 22. c4 {[%clk 0:01:59]}  b4 {[%clk 0:01:18]} 23. Na4 {[%clk 0:01:59]}  Qc8 {[%clk 0:01:19]} 24. Nb6 {[%clk 0:01:59]}  Qb8 {[%clk 0:01:18]} 25. h3 {[%clk 0:01:59]}  Bc8 {[%clk 0:01:03]} 26. Bd3 {[%clk 0:01:51]}  Bd7 {[%clk 0:01:02]} 27. Kf1 {[%clk 0:01:51]}  Be8 {[%clk 0:00:45]} 28. Ke2 {[%clk 0:01:51]}  Nc8 {[%clk 0:00:36]} 29. Nxc8 {[%clk 0:01:41]}  Qxc8 {[%clk 0:00:37]} 30. Kd2 {[%clk 0:01:42]}  Rf6 {[%clk 0:00:37]} 31. Rh1 {[%clk 0:01:41]}  Bd7 {[%clk 0:00:30]} 32. Be2 {[%clk 0:01:41]}  Rg6 {[%clk 0:00:29]} 33. Kc2 {[%clk 0:01:41]}  h5 {[%clk 0:00:24]} 34. Kb2 {[%clk 0:01:42]}  h4 {[%clk 0:00:22]} 35. Be1 {[%clk 0:01:39]}  Rd6 {[%clk 0:00:20]} 36. Bd2 {[%clk 0:01:39]}  Rg6 {[%clk 0:00:20]} 37. Qg1 {[%clk 0:01:40]}  Kf8 {[%clk 0:00:20]} 38. Qf2 {[%clk 0:01:40]}  Ke8 {[%clk 0:00:20]} 39. Qe1 {[%clk 0:01:40]}  Kf8 {[%clk 0:00:20]} 40. Bxb4 {[%clk 0:01:41]}  cxb4 {[%clk 0:00:20]} 41. Qxb4 {[%clk 0:01:41]}  Rc5 {[%clk 0:00:16]} 42. Rhc1 {[%clk 0:01:40]}  Kg8 {[%clk 0:00:16]} 43. Qc3 {[%clk 0:01:40]}  Rc7 {[%clk 0:00:14]} 44. b4 {[%clk 0:01:40]}  Bb5 {[%clk 0:00:15]} 45. Qb3 {[%clk 0:01:38]}  Be8 {[%clk 0:00:14]} 46. c5 {[%clk 0:01:37]}  Bf7 {[%clk 0:00:15]} 47. Ka3 {[%clk 0:01:31]}  Qb8 {[%clk 0:00:14]} 48. Qa4 {[%clk 0:01:30]}  Bf8 {[%clk 0:00:08]} 49. Rab1 {[%clk 0:01:26]}  Qd8 {[%clk 0:00:08]} 50. c6 {[%clk 0:01:25]}  e6 {[%clk 0:00:08]} 51. Rd1 {[%clk 0:01:20]}  exd5 {[%clk 0:00:08]} 52. exd5 {[%clk 0:01:21]}  Bd6 {[%clk 0:00:08]} 53. Bxa6 {[%clk 0:01:20]}  Ra7 {[%clk 0:00:08]} 54. Qb5 {[%clk 0:01:09]}  Qa8 {[%clk 0:00:08]} 55. Bb7 {[%clk 0:00:51]}  Rxa5+ {[%clk 0:00:09]} 56. Kb3 {[%clk 0:00:52]}  Ra3+ {[%clk 0:00:09]} 57. Kc4 {[%clk 0:00:48]}  Qa7 {[%clk 0:00:08]} 58. Rb3 {[%clk 0:00:42]}  Ra2 {[%clk 0:00:07]} 59. Rdd3 {[%clk 0:00:23]}  Rc2+ {[%clk 0:00:07]} 60. Rdc3 {[%clk 0:00:21]}  Qd4# {[%clk 0:00:07]} 0-1


[Site "https://www.chess.com"]

[Event "Titled Tuesday Blitz April 12 Late 2022"]
[White "Fajdetic, Hrvoje"]
[Black "Dauner, Benedikt"]
[WhiteFideId "14501945"]
[BlackFideId "16225899"]
[WhiteElo "2172"]
[BlackElo "2230"]
[Result "0-1"]
[Round "02"]
[TimeControl "180+1"]
[Date "2022.04.13"]
[WhiteClock "0:01:27"]
[BlackClock "0:01:24"]

1. d4 {[%clk 0:03:00]}  Nf6 {[%clk 0:02:59]} 2. Bf4 {[%clk 0:03:00]}  e6 {[%clk 0:02:58]} 3. e3 {[%clk 0:03:00]}  b6 {[%clk 0:02:57]} 4. Be2 {[%clk 0:02:59]}  Bb7 {[%clk 0:02:57]} 5. Bf3 {[%clk 0:03:00]}  d5 {[%clk 0:02:56]} 6. c4 {[%clk 0:02:57]}  Bd6 {[%clk 0:02:49]} 7. Ne2 {[%clk 0:02:56]}  O-O {[%clk 0:02:47]} 8. Nbc3 {[%clk 0:02:56]}  a6 {[%clk 0:02:33]} 9. g4 {[%clk 0:02:52]}  Ne4 {[%clk 0:02:03]} 10. cxd5 {[%clk 0:02:46]}  exd5 {[%clk 0:02:03]} 11. Qc2 {[%clk 0:02:24]}  Re8 {[%clk 0:01:59]} 12. h4 {[%clk 0:02:08]}  Qe7 {[%clk 0:01:29]} 13. Bxd6 {[%clk 0:01:35]}  Qxd6 {[%clk 0:01:27]} 14. Nf4 {[%clk 0:01:27]}  Nxc3 {[%clk 0:01:24]} 0-1


[Site "https://www.chess.com"]

[Event "Titled Tuesday Blitz April 12 Late 2022"]
[White "Federzoni, Enzo"]
[Black "Wagner, Dennis"]
[WhiteFideId "2173301"]
[BlackFideId "24650684"]
[WhiteElo "1956"]
[BlackElo "2355"]
[Result "0-1"]
[Round "02"]
[TimeControl "180+1"]
[Date "2022.04.13"]
[WhiteClock "0:00:33"]
[BlackClock "0:00:51"]

1. c4 {[%clk 0:03:00]}  Nf6 {[%clk 0:02:59]} 2. Nc3 {[%clk 0:03:00]}  e5 {[%clk 0:02:59]} 3. g3 {[%clk 0:03:00]}  Bb4 {[%clk 0:02:58]} 4. Bg2 {[%clk 0:02:59]}  O-O {[%clk 0:02:58]} 5. Nf3 {[%clk 0:02:54]}  Re8 {[%clk 0:02:59]} 6. O-O {[%clk 0:02:53]}  e4 {[%clk 0:02:56]} 7. Nd4 {[%clk 0:02:53]}  Nc6 {[%clk 0:02:56]} 8. Nxc6 {[%clk 0:02:47]}  dxc6 {[%clk 0:02:55]} 9. d4 {[%clk 0:02:47]}  Bxc3 {[%clk 0:02:51]} 10. bxc3 {[%clk 0:02:46]}  Be6 {[%clk 0:02:52]} 11. Qb3 {[%clk 0:02:44]}  b5 {[%clk 0:02:52]} 12. d5 {[%clk 0:02:43]}  bxc4 {[%clk 0:02:52]} 13. Qxc4 {[%clk 0:02:44]}  cxd5 {[%clk 0:02:52]} 14. Qc5 {[%clk 0:02:42]}  Nd7 {[%clk 0:02:49]} 15. Qd4 {[%clk 0:02:42]}  c5 {[%clk 0:02:49]} 16. Qd1 {[%clk 0:02:41]}  Ne5 {[%clk 0:02:49]} 17. Bf4 {[%clk 0:02:33]}  Nc4 {[%clk 0:02:49]} 18. h4 {[%clk 0:02:33]}  Qd7 {[%clk 0:02:49]} 19. Rb1 {[%clk 0:02:30]}  h6 {[%clk 0:02:47]} 20. a4 {[%clk 0:02:20]}  Rad8 {[%clk 0:02:47]} 21. Rb5 {[%clk 0:02:19]}  Rc8 {[%clk 0:02:38]} 22. Qb3 {[%clk 0:02:13]}  Bh3 {[%clk 0:02:31]} 23. Rb7 {[%clk 0:02:10]}  Qg4 {[%clk 0:02:31]} 24. Re1 {[%clk 0:01:55]}  Bxg2 {[%clk 0:02:29]} 25. Kxg2 {[%clk 0:01:56]}  Na5 {[%clk 0:02:22]} 26. Qxd5 {[%clk 0:01:55]}  Nxb7 {[%clk 0:02:22]} 27. Qxb7 {[%clk 0:01:55]}  a5 {[%clk 0:02:15]} 28. Qb6 {[%clk 0:01:50]}  Qe6 {[%clk 0:01:46]} 29. Qxa5 {[%clk 0:01:48]}  Qc4 {[%clk 0:01:47]} 30. Be3 {[%clk 0:01:41]}  Re6 {[%clk 0:01:31]} 31. Qa7 {[%clk 0:01:27]}  Ra6 {[%clk 0:01:22]} 32. Qb7 {[%clk 0:01:16]}  Raa8 {[%clk 0:01:22]} 33. a5 {[%clk 0:01:15]}  Qxc3 {[%clk 0:01:22]} 34. Rd1 {[%clk 0:01:11]}  Qxa5 {[%clk 0:01:19]} 35. Rd7 {[%clk 0:01:10]}  Qa6 {[%clk 0:01:13]} 36. Qb3 {[%clk 0:00:46]}  c4 {[%clk 0:01:09]} 37. Qc3 {[%clk 0:00:44]}  Qe6 {[%clk 0:01:04]} 38. Rb7 {[%clk 0:00:37]}  Rab8 {[%clk 0:01:03]} 39. Rxb8 {[%clk 0:00:35]}  Rxb8 {[%clk 0:01:04]} 40. Bf4 {[%clk 0:00:35]}  Rc8 {[%clk 0:01:01]} 41. h5 {[%clk 0:00:32]}  Qg4 {[%clk 0:00:58]} 42. Qd4 {[%clk 0:00:33]}  Qxh5 {[%clk 0:00:55]} 43. Qd7 {[%clk 0:00:33]}  Qc5 {[%clk 0:00:52]} 44. Be3 {[%clk 0:00:33]}  Qc6 {[%clk 0:00:52]} 45. Qd4 {[%clk 0:00:33]}  c3 {[%clk 0:00:52]} 46. Bxh6 {[%clk 0:00:33]}  Qxh6 {[%clk 0:00:51]} 0-1


[Site "https://www.chess.com"]

[Event "Titled Tuesday Blitz April 12 Late 2022"]
[White "Foisor, Sabina-Francesca"]
[Black "Santos Ruiz, Miguel"]
[WhiteFideId "1212915"]
[BlackFideId "22291482"]
[WhiteElo "2382"]
[BlackElo "2747"]
[Result "0-1"]
[Round "02"]
[TimeControl "180+1"]
[Date "2022.04.13"]
[WhiteClock "0:00:07"]
[BlackClock "0:00:19"]

1. d4 {[%clk 0:03:00]}  Nf6 {[%clk 0:02:59]} 2. c4 {[%clk 0:03:00]}  e6 {[%clk 0:02:58]} 3. Nf3 {[%clk 0:02:58]}  Bb4+ {[%clk 0:02:57]} 4. Bd2 {[%clk 0:02:58]}  a5 {[%clk 0:02:52]} 5. g3 {[%clk 0:02:55]}  d5 {[%clk 0:02:52]} 6. b3 {[%clk 0:02:34]}  b6 {[%clk 0:02:31]} 7. Bg2 {[%clk 0:02:31]}  Bb7 {[%clk 0:02:31]} 8. O-O {[%clk 0:02:23]}  O-O {[%clk 0:02:30]} 9. a3 {[%clk 0:02:07]}  Bd6 {[%clk 0:02:18]} 10. Bg5 {[%clk 0:01:57]}  Nbd7 {[%clk 0:02:17]} 11. Nc3 {[%clk 0:01:52]}  h6 {[%clk 0:02:03]} 12. Bc1 {[%clk 0:01:42]}  c5 {[%clk 0:01:56]} 13. cxd5 {[%clk 0:01:27]}  Nxd5 {[%clk 0:01:51]} 14. Nb5 {[%clk 0:01:19]}  Be7 {[%clk 0:01:46]} 15. Bb2 {[%clk 0:01:13]}  Rc8 {[%clk 0:01:33]} 16. e4 {[%clk 0:01:08]}  N5f6 {[%clk 0:01:33]} 17. e5 {[%clk 0:00:51]}  Nd5 {[%clk 0:01:32]} 18. Rc1 {[%clk 0:00:46]}  cxd4 {[%clk 0:01:21]} 19. Nfxd4 {[%clk 0:00:39]}  Rxc1 {[%clk 0:01:16]} 20. Qxc1 {[%clk 0:00:40]}  Nc5 {[%clk 0:01:08]} 21. Qc2 {[%clk 0:00:25]}  Qd7 {[%clk 0:01:03]} 22. Rd1 {[%clk 0:00:23]}  Rc8 {[%clk 0:01:01]} 23. Qe2 {[%clk 0:00:22]}  Ba6 {[%clk 0:00:47]} 24. a4 {[%clk 0:00:21]}  Bb7 {[%clk 0:00:26]} 25. h4 {[%clk 0:00:18]}  Qd8 {[%clk 0:00:25]} 26. Kh2 {[%clk 0:00:17]}  Qd7 {[%clk 0:00:24]} 27. Kg1 {[%clk 0:00:17]}  Rd8 {[%clk 0:00:24]} 28. Qg4 {[%clk 0:00:14]}  Bf8 {[%clk 0:00:22]} 29. h5 {[%clk 0:00:14]}  Qc8 {[%clk 0:00:22]} 30. Ne2 {[%clk 0:00:13]}  Qa8 {[%clk 0:00:22]} 31. Ned4 {[%clk 0:00:11]}  Ne3 {[%clk 0:00:21]} 32. fxe3 {[%clk 0:00:11]}  Bxg2 {[%clk 0:00:21]} 33. Rd2 {[%clk 0:00:09]}  Bb7 {[%clk 0:00:20]} 34. Rf2 {[%clk 0:00:10]}  Ne4 {[%clk 0:00:20]} 35. Rf1 {[%clk 0:00:09]}  Bd5 {[%clk 0:00:20]} 36. Nc7 {[%clk 0:00:08]}  Qc8 {[%clk 0:00:19]} 37. Ndb5 {[%clk 0:00:09]}  Ng5 {[%clk 0:00:19]} 38. Bd4 {[%clk 0:00:09]}  Bb7 {[%clk 0:00:18]} 39. Kh2 {[%clk 0:00:09]}  Qd7 {[%clk 0:00:18]} 40. Qf4 {[%clk 0:00:09]}  Qc6 {[%clk 0:00:18]} 41. e4 {[%clk 0:00:09]}  Qc2+ {[%clk 0:00:18]} 42. Rf2 {[%clk 0:00:09]}  Qxe4 {[%clk 0:00:18]} 43. Qxe4 {[%clk 0:00:09]}  Nxe4 {[%clk 0:00:19]} 44. Bxb6 {[%clk 0:00:08]}  Nxf2 {[%clk 0:00:19]} 45. Bxf2 {[%clk 0:00:08]}  Rd1 {[%clk 0:00:19]} 46. Bb6 {[%clk 0:00:07]}  Rh1# {[%clk 0:00:19]} 0-1


[Site "https://www.chess.com"]

[Event "Titled Tuesday Blitz April 12 Late 2022"]
[White "Gracia Alvarez, Gerardo Antonio"]
[Black "Bordi, Kevin"]
[WhiteFideId "5109124"]
[BlackFideId "621862"]
[WhiteElo "2468"]
[BlackElo "2765"]
[Result "0-1"]
[Round "02"]
[TimeControl "180+1"]
[Date "2022.04.13"]
[WhiteClock "0:00:50"]
[BlackClock "0:00:39"]

1. e4 {[%clk 0:03:00]}  d5 {[%clk 0:03:00]} 2. exd5 {[%clk 0:03:00]}  Qxd5 {[%clk 0:03:01]} 3. Nc3 {[%clk 0:03:00]}  Qa5 {[%clk 0:03:02]} 4. d4 {[%clk 0:02:59]}  Nf6 {[%clk 0:03:03]} 5. Nf3 {[%clk 0:02:58]}  Nc6 {[%clk 0:03:03]} 6. Bb5 {[%clk 0:02:51]}  Ne4 {[%clk 0:03:03]} 7. O-O {[%clk 0:02:35]}  Nxc3 {[%clk 0:03:02]} 8. Bxc6+ {[%clk 0:02:35]}  bxc6 {[%clk 0:03:03]} 9. bxc3 {[%clk 0:02:35]}  Qxc3 {[%clk 0:03:04]} 10. Bd2 {[%clk 0:02:28]}  Qc4 {[%clk 0:02:39]} 11. Ne5 {[%clk 0:02:26]}  Qxd4 {[%clk 0:02:37]} 12. Nxc6 {[%clk 0:02:26]}  Qd5 {[%clk 0:02:37]} 13. Nb4 {[%clk 0:02:23]}  Qc4 {[%clk 0:02:24]} 14. Qf3 {[%clk 0:02:08]}  c6 {[%clk 0:02:14]} 15. Rfe1 {[%clk 0:01:39]}  Bg4 {[%clk 0:02:00]} 16. Qg3 {[%clk 0:01:27]}  e6 {[%clk 0:01:50]} 17. Nd3 {[%clk 0:01:24]}  Bf5 {[%clk 0:01:19]} 18. Qc7 {[%clk 0:01:19]}  Bxd3 {[%clk 0:00:53]} 19. cxd3 {[%clk 0:01:20]}  Qd5 {[%clk 0:00:53]} 20. Rac1 {[%clk 0:01:20]}  Bc5 {[%clk 0:00:39]} 21. Re5 {[%clk 0:00:57]}  Qd6 {[%clk 0:00:40]} 22. Qb7 {[%clk 0:00:50]}  Rb8 {[%clk 0:00:39]} 0-1


[Site "https://www.chess.com"]